bitfinex-derivatives/quotes_ETHF0:USTF0_20240915
["timestamp","ask_amount","ask_price","bid_price","bid_amount"]
[1726383737799,0.377,2422.9,2422.8,6.32868229]
[1726383737997,0.377,2422.9,2422.8,6.32867354]
[1726383738903,0.377,2422.9,2422.8,5.82811591]
[1726383739198,0.377,2422.9,2422.8,4.56578987]
[1726383739395,0.377,2422.9,2422.8,5.06636837]
[1726383739592,0.377,2422.9,2422.8,6.32870744]
[1726383739901,0.377,2422.9,2422.8,7.29069671]
[1726383740403,0.377,2422.9,2422.8,2.72490438]
[1726383742399,0.377,2422.9,2422.8,1.76289753]
[1726383745505,0.377,2422.9,2422.8,2.16359753]
[1726383747108,0.377,2422.9,2422.8,1.20161447]
[1726383747312,0.377,2422.9,2422.8,2.16361001]
[1726383747603,0.377,2422.9,2422.8,2.90187916]
[1726383747997,0.377,2422.9,2422.8,2.16361001]
[1726383748198,0.377,2422.9,2422.8,2.90186844]
[1726383748606,0.377,2422.9,2422.8,2.16361001]
[1726383748906,0.377,2422.9,2422.8,2.90186406]
[1726383750408,0.377,2422.9,2422.8,0.4007]
[1726383750704,0.377,2422.9,2422.8,2.90180235]
[1726383751404,0.377,2422.9,2422.8,0.4007]
[1726383751608,0.377,2422.9,2422.8,2.9017975]
[1726383751911,0.377,2422.9,2422.8,2.90181059]
[1726383753501,0.377,2422.9,2422.8,2.90181047]
[1726383753708,0.377,2422.9,2422.8,1.60037534]
[1726383754008,0.377,2422.9,2422.8,1.7021637]
[1726383754210,0.377,2422.9,2422.8,1.3014637]
[1726383754211,6.10682,2422.9,2422.8,1.3014637]
[1726383754505,8.16622099,2422.9,2422.8,0.50056296]
[1726383754695,8.16622099,2422.9,2422.7,0.3892]
[1726383754895,4.03902099,2422.9,2422.7,0.3892]
[1726383756298,6.83420099,2422.9,2422.7,0.3892]
[1726383756506,3.5848,2422.9,2422.7,0.3892]
[1726383757499,2.70695291,2422.8,2422.7,0.3892]
[1726383757708,2.16550829,2422.8,2422.7,6.81910426]
[1726383757897,2.16550829,2422.8,2422.7,7.81935759]
[1726383758103,2.16550829,2422.8,2422.7,7.27980309]
[1726383758503,2.16550829,2422.8,2422.7,6.86715309]
[1726383758699,2.70695291,2422.9,2422.7,5.16040576]
[1726383758899,2.70695291,2422.9,2422.8,0.96181791]
[1726383761009,2.70695291,2422.9,2422.8,0.50053094]
[1726383761407,2.70695291,2422.9,2422.8,0.96191774]
[1726383765114,2.70695291,2422.9,2422.8,0.50052413]
[1726383765306,2.70695291,2422.9,2422.8,0.96190625]
[1726383768116,2.70695291,2422.9,2422.8,0.50052413]
[1726383768308,2.70695291,2422.9,2422.8,0.96191224]
[1726383768614,2.70695291,2422.9,2422.8,0.50051259]
[1726383768914,2.70695291,2422.9,2422.8,0.96188474]
[1726383769712,0.4126,2423.0,2422.8,0.96188474]
[1726383770019,0.4017,2422.9,2422.7,0.7683]
[1726383770209,2.70722308,2422.8,2422.7,0.7683]
[1726383770406,2.70722308,2422.8,2422.7,1.26885714]
[1726383770619,2.70722308,2422.8,2422.7,2.53115954]
[1726383770909,3.10892308,2422.9,2422.7,2.53115954]
[1726383771116,3.10892308,2422.9,2422.8,0.96193163]
[1726383771414,0.4017,2422.9,2422.8,0.96193163]
[1726383771617,3.10886604,2422.9,2422.8,0.96193163]
[1726383772506,3.10886604,2422.9,2422.7,0.7683]
[1726383772707,3.10886604,2422.9,2422.8,1.50052119]
[1726383773119,3.10886604,2422.9,2422.8,1.96190013]
[1726383773316,0.4017,2422.9,2422.8,2.88465007]
[1726383775414,0.4017,2422.9,2422.8,2.88470439]
[1726383776813,0.4017,2422.9,2422.8,2.88467664]
[1726383777313,3.10892753,2422.9,2422.8,2.88467664]
[1726383777512,0.4017,2422.9,2422.8,2.42328385]
[1726383777715,0.4017,2422.9,2422.8,2.8846691]
[1726383778125,0.4017,2422.9,2422.8,2.88467163]
[1726383782732,0.4017,2422.9,2422.8,1.96191786]
[1726383783120,0.4017,2422.9,2422.8,1.96193859]
[1726383783829,0.4017,2422.9,2422.8,1.96195471]
[1726383786226,3.10899743,2422.9,2422.8,1.96195471]
[1726383789426,3.10899743,2422.9,2422.8,1.0]
[1726383789723,3.10899743,2422.9,2422.8,1.96204306]
[1726383793330,3.10899743,2422.9,2422.8,1.0]
[1726383793535,3.10899743,2422.9,2422.8,1.96204718]
[1726383796531,3.10899743,2422.9,2422.8,1.0]
[1726383796735,3.10899743,2422.9,2422.8,1.9620245]
[1726383800237,3.10899743,2422.9,2422.8,1.50058638]
[1726383800437,3.10899743,2422.9,2422.8,1.96202701]
[1726383802437,3.10899743,2422.9,2422.8,2.7629746]
[1726383802438,0.4017,2422.9,2422.8,2.7629746]
[1726383803637,0.4017,2422.9,2422.8,1.46144063]
[1726383803832,0.4017,2422.9,2422.8,2.76301296]
[1726383804234,0.4017,2422.9,2422.8,1.46144063]
[1726383804442,0.4017,2422.9,2422.8,1.80095787]
[1726383804639,0.4017,2422.9,2422.8,2.76300577]
[1726383804940,0.4017,2422.9,2422.8,3.22445552]
[1726383807240,0.4017,2422.9,2422.8,1.92289975]
[1726383807436,0.4017,2422.9,2422.8,2.76301521]
[1726383807840,0.4017,2422.9,2422.8,3.22446806]
[1726383809345,0.4017,2422.9,2422.8,3.96278534]
[1726383810836,0.4017,2422.9,2422.8,3.96276466]
[1726383811039,0.4017,2422.9,2422.8,2.76299453]
[1726383811248,0.4017,2422.9,2422.8,2.76299351]
[1726383811438,0.4017,2422.9,2422.8,5.16250913]
[1726383812837,0.4017,2422.9,2422.8,5.16257198]
[1726383813034,0.4017,2422.9,2422.8,2.30160636]
[1726383813240,0.4017,2422.9,2422.8,3.50142379]
[1726383814443,0.4017,2422.9,2422.8,1.0]
[1726383814651,0.4017,2422.9,2422.8,2.30167524]
[1726383814855,0.4017,2422.9,2422.8,3.04006355]
[1726383815154,0.4017,2422.9,2422.8,3.50155299]
[1726383815549,0.4017,2422.9,2422.8,3.50154579]
[1726383816340,0.4017,2422.9,2422.8,3.50153812]
[1726383817453,3.24940099,2423.1,2422.8,3.50153812]
[1726383817755,4.06739099,2423.1,2422.8,2.08047917]
[1726383818049,4.06739099,2423.1,2422.8,1.0]
[1726383818453,4.06739099,2423.1,2422.9,0.96213085]
[1726383818654,4.06739099,2423.1,2423.0,0.50064084]
[1726383818946,4.06739099,2423.1,2423.0,0.96212222]
[1726383819455,0.4054,2423.1,2423.0,0.96209283]
[1726383819955,0.4054,2423.1,2423.0,2.15575792]
[1726383820757,0.4054,2423.1,2423.0,1.35489283]
[1726383820948,0.096,2423.2,2423.0,1.35489283]
[1726383821149,6.87020099,2423.3,2423.1,0.96209283]
[1726383821448,6.87020099,2423.3,2423.0,0.3928]
[1726383821849,6.87020099,2423.3,2423.1,0.50053895]
[1726383822149,3.66240099,2423.3,2423.0,0.3928]
[1726383822343,3.66240099,2423.3,2423.1,0.50053609]
[1726383822654,7.28276099,2423.3,2423.0,0.3928]
[1726383822952,7.28276099,2423.3,2423.1,0.50053488]
[1726383823152,7.28276099,2423.3,2423.0,0.3928]
[1726383823348,7.28276099,2423.3,2423.1,0.50053913]
[1726383823548,8.47276099,2423.3,2423.0,0.3928]
[1726383823754,8.47276099,2423.3,2423.1,0.50053916]
[1726383823957,8.47276099,2423.3,2423.0,0.3928]
[1726383824149,8.06020099,2423.3,2423.1,0.50053934]
[1726383824350,8.06020099,2423.3,2423.0,0.3928]
[1726383824656,8.06020099,2423.3,2423.1,0.50053813]
[1726383824849,8.06020099,2423.3,2423.0,0.3928]
[1726383825045,8.06020099,2423.3,2423.1,0.50054028]
[1726383825264,8.06020099,2423.3,2423.0,0.3928]
[1726383825449,2.70672066,2423.1,2423.0,0.3928]
[1726383825854,2.70672066,2423.1,2423.0,0.85420859]
[1726383826056,2.70672066,2423.1,2423.0,1.35474725]
[1726383826256,2.70672066,2423.1,2423.0,1.81615353]
[1726383826956,2.70672066,2423.1,2423.0,1.81615178]
[1726383829162,1.98537,2423.2,2423.0,1.81615178]
[1726383829463,0.3992,2423.1,2423.0,0.85420859]
[1726383829763,3.10554744,2423.1,2423.0,1.81617939]
[1726383830151,3.10554727,2423.1,2423.0,2.22007939]
[1726383831153,3.10554727,2423.1,2423.0,2.22008123]
[1726383831362,3.10554727,2423.1,2423.0,2.60368123]
[1726383832356,3.10554727,2423.1,2423.0,1.64170859]
[1726383832656,3.10554727,2423.1,2423.0,2.60368416]
[1726383833052,3.10554727,2423.1,2423.0,2.14227557]
[1726383835865,3.10554727,2423.1,2423.0,2.14231025]
[1726383836059,3.10554727,2423.1,2423.0,2.14234374]
[1726383836254,3.10554727,2423.1,2423.0,1.64175342]
[1726383836560,3.10554727,2423.1,2423.0,2.14233959]
[1726383836767,3.10554727,2423.1,2423.0,2.14233536]
[1726383838162,3.10554727,2423.1,2423.0,1.1803]
[1726383838465,3.10554727,2423.1,2423.0,1.68086711]
[1726383838760,3.10554727,2423.1,2423.0,2.14230007]
[1726383838959,2.70634727,2423.2,2423.0,2.14230007]
[1726383839164,2.70634727,2423.2,2423.1,0.50056711]
[1726383840262,2.70634727,2423.2,2423.1,1.37455548]
[1726383840967,6.29954727,2423.3,2423.1,1.37455548]
[1726383841163,6.29954727,2423.3,2423.2,1.37453548]
[1726383841564,6.29954727,2423.3,2423.2,0.50056711]
[1726383842071,6.29954727,2423.3,2423.2,0.89766711]
[1726383842367,2.80234727,2423.4,2423.2,2.96157825]
[1726383842576,2.70634727,2423.4,2423.3,0.88276711]
[1726383842870,2.70634727,2423.4,2423.3,1.26436711]
[1726383843267,2.70634727,2423.4,2423.3,0.7638]
[1726383843464,3.08794727,2423.5,2423.3,1.26419437]
[1726383843665,3.08794727,2423.5,2423.3,0.7638]
[1726383845274,3.08794727,2423.5,2423.3,1.7638]
[1726383847367,2.16250127,2423.4,2423.3,1.7638]
[1726383851268,2.16250127,2423.4,2423.3,3.36635]
[1726383851470,2.54410127,2423.5,2423.3,3.36635]
[1726383852479,2.54410127,2423.5,2423.3,2.9538]
[1726383852971,3.21484727,2423.6,2423.5,0.41252]
[1726383852972,2.25850127,2423.6,2423.5,0.41252]
[1726383853174,2.16250127,2423.6,2423.4,4.81033]
[1726383853365,2.16250127,2423.6,2423.4,1.19]
[1726383853366,1.62110111,2423.5,2423.4,1.19]
[1726383853567,1.62094061,2423.5,2423.4,1.60252]
[1726383853967,1.62094061,2423.5,2423.4,4.81032]
[1726383854172,1.62094061,2423.5,2423.4,13.66723362]
[1726383854475,1.62094061,2423.5,2423.4,14.62853285]
[1726383854476,1.08060351,2423.5,2423.4,14.62853285]
[1726383855363,1.08060351,2423.5,2423.4,14.1674436]
[1726383856176,1.08060351,2423.5,2423.4,13.66725362]
[1726383856380,1.08060351,2423.5,2423.4,14.16741133]
[1726383856679,1.08060351,2423.5,2423.4,14.16741193]
[1726383856873,1.08060351,2423.6,2423.5,0.41252]
[1726383857081,1.08060351,2423.7,2423.6,0.4125]
[1726383857374,1.17660351,2423.9,2423.8,0.41247]
[1726383857580,0.4017,2424.1,2423.8,1.19]
[1726383857581,1.08060351,2424.0,2423.8,1.19]
[1726383857767,1.08060351,2424.0,2423.9,0.41245]
[1726383858175,1.08060351,2424.0,2423.9,8.59132956]
[1726383858483,1.08060351,2424.0,2423.9,4.46572956]
[1726383865487,1.49303351,2424.0,2423.7,1.5771]
[1726383865780,1.90533351,2424.0,2423.8,4.48857649]
[1726383866380,1.90535351,2424.0,2423.8,4.48857649]
[1726383866879,0.3736,2423.9,2423.8,4.48857649]
[1726383868189,1.97605,2423.9,2423.8,4.48857649]
[1726383868392,1.97605,2423.9,2423.6,0.096]
[1726383868393,0.41247,2423.8,2423.6,0.096]
[1726383868688,4.69840056,2423.8,2423.6,0.096]
[1726383868990,1.07813056,2423.7,2423.6,0.096]
[1726383869190,1.07813056,2423.7,2423.6,1.19]
[1726383869487,1.07813056,2423.8,2423.6,1.19]
[1726383869686,1.07813056,2423.8,2423.7,0.3778]
[1726383871182,1.07813056,2423.8,2423.7,0.7532]
[1726383871586,3.99386,2423.9,2423.7,0.7532]
[1726383873294,0.41247,2423.8,2423.7,0.7532]
[1726383874392,3.99386,2423.9,2423.7,0.7532]
[1726383875282,6.15636127,2423.9,2423.7,0.7532]
[1726383876595,0.41249,2423.7,2423.4,1.19]
[1726383876798,1.07874932,2423.6,2423.4,1.9843]
[1726383876983,0.3948,2423.6,2423.4,6.59547608]
[1726383877291,1.47354932,2423.6,2423.4,7.00800608]
[1726383878090,1.47354932,2423.6,2423.4,6.59547608]
[1726383878687,1.47354932,2423.6,2423.4,5.40547608]
[1726383878887,3.07605932,2423.6,2423.4,4.61117608]
[1726383879089,3.07605932,2423.6,2423.3,1.096]
[1726383879289,1.07874932,2423.5,2423.3,1.096]
[1726383879595,1.07874932,2423.5,2423.3,1.0]
[1726383879794,1.49126932,2423.5,2423.3,1.0]
[1726383879999,0.41254,2423.4,2423.3,1.0]
[1726383880300,0.78494,2423.4,2423.3,1.0]
[1726383883297,2.94744127,2423.4,2423.3,1.0]
[1726383886909,2.16250127,2423.5,2423.3,2.19]
[1726383887199,3.10114727,2423.6,2423.3,2.19]
[1726383887200,2.96981127,2423.6,2423.3,2.19]
[1726383887403,0.3948,2423.6,2423.4,4.90714506]
[1726383887705,0.3948,2423.6,2423.5,0.3844]
[1726383887908,0.3948,2423.6,2423.5,0.7737]
[1726383888608,0.8073,2423.6,2423.5,0.7737]
[1726383890103,4.27974727,2423.8,2423.6,0.41249]
[1726383890104,2.16250127,2423.8,2423.6,0.41249]
[1726383890305,2.16250127,2423.9,2423.7,1.19]
[1726383890498,2.16250127,2424.0,2423.7,1.19]
[1726383890702,2.16250127,2423.9,2423.8,0.3788]
[1726383891203,2.16250127,2424.0,2423.8,0.3788]
[1726383891401,2.16250127,2424.0,2423.9,0.8112]
[1726383892005,6.28810127,2424.0,2423.9,0.8112]
[1726383892311,7.47810127,2424.0,2423.9,0.4055]
[1726383892907,6.28810127,2424.0,2423.9,0.4055]
[1726383893102,2.16250127,2424.0,2423.9,0.4055]
[1726383894306,2.57590127,2424.1,2423.9,0.4055]
[1726383895708,2.98832127,2424.1,2423.9,0.4055]
[1726383895901,2.16250127,2424.0,2423.7,0.4077]
[1726383896097,2.54150127,2423.9,2423.7,0.4077]
[1726383901407,2.16250127,2423.9,2423.7,0.4077]
[1726383903317,5.37030127,2424.0,2423.8,4.50795763]
[1726383903717,5.37030127,2424.0,2423.9,0.4081]
[1726383906212,5.37030127,2424.0,2423.7,0.82018]
[1726383906407,2.16250127,2423.9,2423.7,0.82018]
[1726383906820,0.3893,2423.8,2423.7,0.82018]
[1726383909126,0.3893,2423.8,2423.7,0.4077]
[1726383913116,2.16250127,2423.9,2423.8,0.41247]
[1726383913316,2.70634727,2424.1,2423.8,0.41246]
[1726383913317,2.16250127,2424.1,2423.8,0.41246]
[1726383913718,2.16250127,2424.1,2423.9,0.384]
[1726383913912,2.16250127,2424.1,2424.0,0.4011]
[1726383916723,2.16250127,2424.1,2423.9,0.384]
[1726383916924,1.62012954,2424.0,2423.9,0.384]
[1726383928339,1.62012954,2424.0,2423.9,0.79645]
[1726383929327,2.16250127,2424.1,2423.9,0.79645]
[1726383929729,1.62036021,2424.0,2423.9,0.79644]
[1726383930338,2.16250127,2424.1,2423.9,1.98644]
[1726383931535,2.16250127,2424.0,2423.9,1.98644]
[1726383931928,2.16250127,2424.1,2423.9,6.38018003]
[1726383932331,2.16250127,2424.0,2423.9,6.38018003]
[1726383932535,2.16250127,2424.0,2423.9,7.34077943]
[1726383933032,2.16250127,2424.0,2423.9,6.87999197]
[1726383933230,2.16250127,2424.0,2423.9,7.34079287]
[1726383934035,2.16250127,2424.0,2423.9,6.38018003]
[1726383934236,2.16250127,2424.0,2423.9,7.34080309]
[1726383936534,2.16250127,2424.0,2423.9,7.34080434]
[1726383938037,2.16250127,2424.0,2423.9,6.38018003]
[1726383938242,2.16250127,2424.0,2423.9,6.88001178]
[1726383938537,2.16250127,2424.0,2423.9,7.34081564]
[1726383940246,2.16250127,2424.1,2424.0,0.41243]
[1726383940539,2.16286532,2424.2,2424.0,2.95016682]
[1726383940741,2.16286532,2424.2,2424.1,1.76535561]
[1726383940943,2.70634727,2424.3,2424.2,0.4124]
[1726383941141,2.70634727,2424.3,2424.2,1.6024]
[1726383941339,2.70634727,2424.3,2424.2,2.3572]
[1726383941840,2.70634727,2424.3,2424.2,1.9448]
[1726383949436,2.70634727,2424.3,2424.2,1.5722]
[1726383952042,3.08164727,2424.3,2424.2,1.5722]
[1726383956443,3.08164727,2424.3,2424.2,0.3822]
[1726383958544,0.3753,2424.3,2424.2,0.3822]
[1726383960749,3.5831,2424.3,2424.2,0.3822]
[1726383964850,0.3753,2424.3,2424.2,0.3822]
[1726383965155,3.5831,2424.3,2424.2,0.3822]
[1726383967648,0.3753,2424.3,2424.2,0.3822]
[1726383968252,3.5831,2424.3,2424.2,0.3822]
[1726383968554,0.3753,2424.3,2424.2,0.3822]
[1726383968759,3.5831,2424.3,2424.2,0.3822]
[1726383970453,3.2078,2424.3,2424.2,0.3822]
[1726383973457,3.2078,2424.3,2424.1,1.99471]
[1726383973458,7.3326,2424.3,2423.9,1.08047917]
[1726383973767,3.4764788,2424.2,2424.0,0.9606805]
[1726383974062,3.4764788,2424.2,2424.1,0.9606805]
[1726383974063,0.7713,2424.2,2424.1,0.9606805]
[1726383974260,0.3778,2424.2,2424.1,0.9606805]
[1726383974459,4.5026,2424.2,2424.1,0.9606805]
[1726383974760,4.5026,2424.2,2424.1,0.49985101]
[1726383975060,4.5026,2424.2,2424.1,0.96071375]
[1726383975654,4.1248,2424.2,2424.1,1.74541375]
[1726383975958,3.2078,2424.3,2424.1,1.74541375]
[1726383976166,4.45638099,2424.4,2424.1,0.7847]
[1726383976566,3.2078,2424.3,2424.1,0.7847]
[1726383977462,7.3326,2424.3,2424.1,0.7847]
[1726383977664,3.2078,2424.3,2424.1,0.7847]
[1726383978164,3.2078,2424.3,2424.1,1.1819]
[1726383980167,4.45638099,2424.4,2424.1,1.1819]
[1726383980465,3.2078,2424.3,2424.1,1.1819]
[1726383981258,3.2078,2424.3,2424.2,0.49986012]
[1726383981770,4.1248,2424.3,2424.2,0.49986012]
[1726383981968,4.1248,2424.3,2424.2,0.49985671]
[1726383982265,7.3326,2424.3,2424.2,0.49985671]
[1726383983562,4.1248,2424.3,2424.2,0.49985671]
[1726383983761,7.3326,2424.3,2424.2,0.49985671]
[1726383984762,4.1248,2424.3,2424.2,0.49985671]
[1726383985271,7.3326,2424.3,2424.2,0.49985671]
[1726383985468,7.3326,2424.3,2424.1,1.1819]
[1726383985658,3.2078,2424.3,2424.2,0.49985598]
[1726383986075,7.3326,2424.3,2424.2,0.49985598]
[1726383987670,4.1248,2424.3,2424.2,0.49985598]
[1726383987872,7.3326,2424.3,2424.2,0.49985598]
[1726383988770,7.3326,2424.3,2424.1,1.1819]
[1726383988970,3.2078,2424.3,2424.2,0.49985441]
[1726383989169,7.3326,2424.3,2424.1,1.1819]
[1726383989370,3.2078,2424.3,2424.2,0.49978979]
[1726383989572,3.2078,2424.3,2424.2,0.49977882]
[1726383989763,7.3326,2424.3,2424.2,0.49977882]
[1726383989974,4.45638099,2424.4,2424.2,0.49977882]
[1726383990271,4.45638099,2424.4,2424.3,1.0]
[1726383990471,7.66418099,2424.4,2424.3,1.0]
[1726383990672,14.44012737,2424.4,2424.3,1.0]
[1726383990968,11.23232737,2424.4,2424.3,1.0]
[1726383991172,14.83822737,2424.4,2424.3,1.0]
[1726383991860,11.63042737,2424.4,2424.3,1.0]
[1726383992064,14.83822737,2424.4,2424.3,1.0]
[1726383997175,11.63042737,2424.4,2424.3,1.0]
[1726383997378,14.83822737,2424.4,2424.3,1.0]
[1726383997773,11.58882638,2424.4,2424.3,1.0]
[1726383998675,0.41242,2424.1,2424.0,0.096]
[1726383998878,0.41245,2423.9,2423.8,1.07964667]
[1726383999070,0.41245,2423.9,2423.7,0.096]
[1726383999071,0.41247,2423.8,2423.7,0.096]
[1726383999269,0.41247,2423.8,2423.5,0.096]
[1726383999270,7.74587,2423.8,2423.5,0.096]
[1726383999570,1.19,2423.7,2423.5,0.096]
[1726383999769,0.3929,2423.6,2423.4,2.65607667]
[1726384001863,0.4094,2423.5,2423.4,2.65607667]
[1726384002064,0.4094,2423.5,2423.4,2.24354667]
[1726384003880,0.3929,2423.6,2423.4,2.65607667]
[1726384004379,0.3929,2423.6,2423.4,1.57643]
[1726384004980,1.5994,2423.7,2423.4,1.57643]
[1726384005281,2.01188,2423.7,2423.4,1.1639]
[1726384008182,1.5994,2423.7,2423.4,1.1639]
[1726384008885,3.2078,2423.6,2423.4,1.1639]
[1726384010583,3.6203,2423.6,2423.4,1.1639]
[1726384010777,1.60252,2423.5,2423.4,1.1639]
[1726384010977,3.35086808,2423.5,2423.4,1.1639]
[1726384012383,1.19,2423.5,2423.4,1.1639]
[1726384013186,2.80940962,2423.5,2423.4,1.1639]
[1726384017978,3.22192962,2423.5,2423.4,1.1639]
[1726384018376,0.41254,2423.4,2423.2,0.096]
[1726384018583,3.22093189,2423.4,2423.3,0.7723]
[1726384018786,1.60254,2423.4,2423.3,0.7723]
[1726384018988,3.76340808,2423.4,2423.3,0.7723]
[1726384019181,1.60254,2423.4,2423.3,0.7723]
[1726384020481,2.57339808,2423.5,2423.3,0.7723]
[1726384020682,1.07857216,2423.4,2423.3,4.39264]
[1726384020884,1.07857216,2423.5,2423.4,1.19]
[1726384021091,1.07857216,2423.6,2423.4,1.19]
[1726384026086,1.07857216,2423.6,2423.4,1.60253]
[1726384034294,1.61804138,2423.7,2423.5,0.41252]
[1726384034295,1.07857216,2423.7,2423.5,0.41252]
[1726384034498,1.07857216,2423.7,2423.6,0.3999]
[1726384034700,1.07857216,2423.7,2423.6,0.7984]
[1726384038302,1.61804138,2423.7,2423.6,0.7984]
[1726384040299,1.61804138,2423.7,2423.6,1.2076]
[1726384041096,1.61804138,2423.7,2423.6,1.6201]
[1726384042308,1.61804138,2423.7,2423.6,7.89970363]
[1726384042606,1.61804138,2423.7,2423.6,7.89967154]
[1726384042806,1.61804138,2423.7,2423.6,3.77327154]
[1726384045706,1.61804138,2423.7,2423.6,3.2733506]
[1726384045906,1.61804138,2423.7,2423.6,3.77326303]
[1726384049310,1.61804138,2423.7,2423.6,3.2733506]
[1726384049698,1.61804138,2423.7,2423.6,3.80992785]
[1726384049905,1.61804138,2423.7,2423.6,4.2731752]
[1726384050612,1.61804138,2423.7,2423.6,4.27317859]
[1726384050915,1.61804138,2423.7,2423.6,4.27317832]
[1726384053010,1.61804138,2423.7,2423.6,3.31001394]
[1726384053204,1.61804138,2423.7,2423.6,3.8099248]
[1726384053406,1.61804138,2423.7,2423.6,4.27316875]
[1726384054610,1.61804138,2423.7,2423.6,3.77325481]
[1726384054814,1.61804138,2423.7,2423.6,3.77325724]
[1726384056516,1.61804138,2423.7,2423.6,2.8101]
[1726384056725,1.61804138,2423.7,2423.6,3.31001637]
[1726384057025,1.61804138,2423.7,2423.6,3.77326562]
[1726384060016,1.61804138,2423.7,2423.6,3.27334925]
[1726384060220,1.61804138,2423.7,2423.6,3.31000989]
[1726384060418,1.61804138,2423.7,2423.6,3.27334396]
[1726384060720,1.61804138,2423.7,2423.6,3.77325708]
[1726384061019,1.61804138,2423.7,2423.6,4.23650382]
[1726384062123,1.61804138,2423.7,2423.6,3.77325441]
[1726384062431,1.61804138,2423.7,2423.6,4.23649933]
[1726384063518,1.61804138,2423.7,2423.6,3.73658888]
[1726384063727,1.61804138,2423.7,2423.6,3.77325404]
[1726384063922,1.61804138,2423.7,2423.6,4.2364982]
[1726384064523,1.61804138,2423.7,2423.6,3.77325424]
[1726384065128,1.61804138,2423.7,2423.6,4.5731217]
[1726384065322,2.16086808,2423.8,2423.7,0.41248]
[1726384065521,2.16086808,2423.8,2423.7,1.37563424]
[1726384066724,2.16086808,2423.8,2423.7,0.91239008]
[1726384066924,2.16086808,2423.8,2423.7,1.37564141]
[1726384069631,2.16086808,2423.8,2423.7,0.96316141]
[1726384069926,3.1135451,2423.9,2423.7,0.96316141]
[1726384070126,0.4042,2423.8,2423.5,4.79405468]
[1726384070342,1.62271425,2423.6,2423.5,4.79405468]
[1726384070631,1.62271425,2423.6,2423.5,4.69805468]
[1726384070826,1.62271425,2423.6,2423.5,5.49808446]
[1726384071035,1.62271425,2423.6,2423.5,7.2027917]
[1726384071221,2.54121901,2423.7,2423.5,7.20280234]
[1726384071424,2.54121901,2423.7,2423.6,0.96336448]
[1726384072124,2.54121901,2423.7,2423.6,1.76340349]
[1726384073737,2.54121901,2423.7,2423.6,1.30005579]
[1726384074036,2.54121901,2423.7,2423.6,1.7633967]
[1726384076237,2.54121901,2423.7,2423.6,2.50473824]
[1726384077036,2.54121901,2423.7,2423.6,1.71255579]
[1726384077336,0.3776,2423.7,2423.6,2.91722916]
[1726384079733,0.3776,2423.7,2423.6,3.58247384]
[1726384079932,0.3776,2423.7,2423.6,3.99497384]
[1726384080133,3.0786851,2423.7,2423.6,3.99497384]
[1726384081136,3.0786851,2423.7,2423.6,3.25361983]
[1726384081340,3.0786851,2423.7,2423.6,3.99495645]
[1726384081541,3.0786851,2423.7,2423.6,3.99495513]
[1726384082036,3.0786851,2423.7,2423.6,3.56438444]
[1726384082243,3.0786851,2423.7,2423.6,4.76905812]
[1726384082838,3.0786851,2423.7,2423.6,3.46901836]
[1726384083036,3.0786851,2423.7,2423.6,3.5643824]
[1726384083233,3.0786851,2423.7,2423.6,4.76905257]
[1726384086146,3.0786851,2423.7,2423.6,4.35655257]
[1726384086938,3.0786851,2423.7,2423.6,4.76905257]
[1726384088136,3.0786851,2423.7,2423.6,4.35655257]
[1726384088340,3.0786851,2423.7,2423.6,2.50470789]
[1726384088642,4.8906,2423.7,2423.6,0.50001451]
[1726384088841,4.8906,2423.7,2423.4,0.3944]
[1726384088842,9.73438212,2423.7,2423.4,0.3944]
[1726384089147,3.2078,2423.5,2423.4,0.3944]
[1726384089342,3.2078,2423.5,2423.4,1.35811205]
[1726384089543,5.60798212,2423.7,2423.4,3.6022]
[1726384089744,2.70730046,2423.5,2423.4,4.10240375]
[1726384089937,2.70730046,2423.5,2423.4,4.40240215]
[1726384090244,2.70730046,2423.5,2423.4,5.36606894]
[1726384090437,2.70730046,2423.5,2423.4,5.02928688]
[1726384090643,2.70730046,2423.5,2423.4,5.77076591]
[1726384090845,2.70730046,2423.5,2423.4,5.02928688]
[1726384091544,2.70730046,2423.6,2423.4,5.02928688]
[1726384091847,2.70730046,2423.6,2423.5,0.96358335]
[1726384092442,2.70730046,2423.6,2423.5,0.50014485]
[1726384092748,2.70730046,2423.6,2423.5,0.96358036]
[1726384093249,2.70730046,2423.6,2423.5,0.50014485]
[1726384093847,2.70730046,2423.6,2423.5,0.96358203]
[1726384094353,2.70730046,2423.6,2423.4,0.85790353]
[1726384094354,1.19,2423.6,2423.4,0.85790353]
[1726384094645,3.89525249,2423.5,2423.4,0.46350353]
[1726384094846,1.9516,2423.5,2423.3,0.3842]
[1726384095032,3.09264253,2423.4,2423.3,0.3842]
[1726384095238,3.09264253,2423.4,2423.3,0.88444992]
[1726384095447,0.3875,2423.4,2423.3,0.88444992]
[1726384095642,4.28264253,2423.4,2423.3,0.88444992]
[1726384096241,1.5775,2423.4,2423.3,0.88444992]
[1726384096542,1.5775,2423.4,2423.3,0.3842]
[1726384098645,3.74020845,2423.4,2423.3,0.3842]
[1726384099846,3.73999388,2423.4,2423.3,0.3842]
[1726384100548,3.73999388,2423.4,2423.2,0.5095]
[1726384100748,3.73999388,2423.4,2423.2,0.4135]
[1726384100947,2.16249388,2423.3,2423.2,0.4135]
[1726384103349,7.74676,2423.3,2423.1,0.395]
[1726384103654,3.35167832,2423.2,2423.1,0.395]
[1726384105748,3.76407832,2423.2,2423.1,0.395]
[1726384107056,4.17664832,2423.2,2423.0,0.096]
[1726384107257,0.79249,2423.1,2422.9,0.3746]
[1726384107456,2.81043235,2423.0,2422.9,0.3746]
[1726384108453,2.26996888,2423.0,2422.9,0.3746]
[1726384109356,2.81043235,2423.0,2422.9,0.3746]
[1726384110170,3.22303235,2423.0,2422.9,0.3746]
[1726384110463,3.22303235,2423.0,2422.8,0.7864]
[1726384110464,3.22206678,2423.0,2422.8,0.7864]
[1726384110653,1.07964455,2422.9,2422.8,0.7864]
[1726384111355,6.01726678,2422.9,2422.8,0.7864]
[1726384113861,5.47712689,2422.9,2422.8,0.7864]
[1726384114262,4.3978,2422.9,2422.8,0.7864]
[1726384114464,5.47699749,2422.9,2422.8,0.7864]
[1726384114764,2.26919749,2422.9,2422.8,0.7864]
[1726384129475,2.80946678,2422.9,2422.8,0.7864]
[1726384131470,3.22208678,2422.9,2422.8,0.7864]
[1726384131873,1.60262,2422.9,2422.8,0.7864]
[1726384133571,3.76429832,2422.9,2422.8,0.7864]